Cogmind - Beta 12 *** ADVENTURER MODE // 2023.05.16 @ 16:21:22 // Winter2019/RPGLIKE Player: Kiks Result: Self-destructed Performance ------------- Evolutions (4) 2000 Regions Visited (21) 4200 Robots Destroyed (350) 1750 Value Destroyed (13898) 13898 Prototype IDs (7) 140 Alien Tech Used (0) 0 Bonus (5934) 5934 TOTAL SCORE: 27922 Bonus ------- High Alert Combat Kills 4745 Follower Combat Kills 365 Entered Garrisons 800 Met Data Miner 300 Friendly Fire -276 Cogmind --------- Core Integrity 600/600 Matter 476/500 Energy 150/150 System Corruption 0% Temperature Cool (0) Movement Hovering (105) Ox1 Location -6/Factory Parts ------- > --- POWER (1) -------- Light Angular Momentum Engine > --- PROPULSION (4) --- Aerolev Unit Antigrav System Antigrav System Antigrav System > --- UTILITY (7) ------ Improved Signal Interpreter Encrypted Comm Array Armor Integrity Analyzer Matter Filter Improved Kinecellerator Hardened Heavy Armor Plating > --- WEAPON (5) ------- Minigun Heavy Battle Rifle Heavy Battle Rifle Hypervelocity Coil Gun Hypervelocity Coil Gun > --- INVENTORY (6) ---- Particle Charger Improved EM Pulse Cannon Improved EM Pulse Cannon Improved EM Pulse Cannon Cooled Particle Cannon Peak State ------------ > --- POWER ------------ Light Angular Momentum Engine > --- PROPULSION ------- Aerolev Unit Antigrav System Antigrav System Antigrav System > --- UTILITY ---------- Improved Signal Interpreter Encrypted Comm Array Armor Integrity Analyzer Matter Filter Improved Kinecellerator Hardened Heavy Armor Plating > --- WEAPON ----------- Minigun Heavy Battle Rifle Heavy Battle Rifle Hypervelocity Coil Gun Hypervelocity Coil Gun > --- INVENTORY -------- Particle Charger Improved EM Pulse Cannon Improved EM Pulse Cannon Improved EM Pulse Cannon Cooled Particle Cannon [Rating: 82] Favorites ----------- Power Light Angular Momentum Engine Engine Light Angular Momentum Engine Power Core Light Nuclear Core Propulsion Aerolev Unit Leg Aluminum Leg Hover Unit Aerolev Unit Flight Unit VTOL Module Utility Improved Signal Interpreter Device Long-range Tractor Beam Storage Medium Matter Pod Processor Improved Signal Interpreter Protection Hardened Heavy Armor Plating Weapon Minigun Energy Gun Heavy Particle Gun Energy Cannon Advanced Beam Cannon Ballistic Gun Minigun Build | -11 -10 -10 -9 -9 -9 -8 -8 -8 -8 -8 -8 -7 -7 -7 -7 -7 -7 -7 -7 -6 -6 ------- Run | Jun Mat Min Mat Min Exi Min Mat Gar Mat Sto Gar Fac Gar Fac Gar Fac Low Low Dat Pro Fac Slots Evolved 13 | 3 . 1 2 . . . 2 3 . . . 1 . . . . . . . 1 . Power . | . . . . . . . . . . . . . . . . . . . . . . Propulsion 3 | 1 . . 1 . . . . 1 . . . . . . . . . . . . . Utility 6 | 1 . . 1 . . . 1 1 . . . 1 . . . . . . . 1 . Weapon 4 | 1 . 1 . . . . 1 1 . . . . . . . . . . . . . Parts Attached 63 | 7 . 2 8 . . . 17 3 1 3 2 2 . . 8 1 1 1 . 2 5 Power 5 | 1 . . . . . . 2 . . . . . . . . . . . . . 2 Engine 3 | 1 . . . . . . 1 . . . . . . . . . . . . . 1 Core 2 | . . . . . . . 1 . . . . . . . . . . . . . 1 Reactor . | . . . . . . . . . . . . . . . . . . . . . . Propulsion 20 | 2 . 2 3 . . . 3 1 1 . 2 . . . 3 . . . . . 3 Treads . | . . . . . . . . . . . . . . . . . . . . . . Leg 2 | 2 . . . . . . . . . . . . . . . . . . . . . Wheel . | . . . . . . . . . . . . . . . . . . . . . . Hover 13 | . . . . . . . 3 1 1 . 2 . . . 3 . . . . . 3 Flight 5 | . . 2 3 . . . . . . . . . . . . . . . . . . Utility 15 | 2 . . 1 . . . 3 2 . . . 1 . . 3 1 1 . . 1 . Device 9 | 1 . . . . . . 2 . . . . 1 . . 2 1 1 . . 1 . Storage 1 | 1 . . . . . . . . . . . . . . . . . . . . . Processor 3 | . . . 1 . . . 1 1 . . . . . . . . . . . . . Hackware . | . . . . . . . . . . . . . . . . . . . . . . Protection 2 | . . . . . . . . 1 . . . . . . 1 . . . . . . Artifact . | . . . . . . . . . . . . . . . . . . . . . . Weapon 23 | 2 . . 4 . . . 9 . . 3 . 1 . . 2 . . 1 . 1 . Energy Gun 1 | . . . . . . . 1 . . . . . . . . . . . . . . Energy Cannon 1 | . . . . . . . . . . 1 . . . . . . . . . . . Ballistic Gun 21 | 2 . . 4 . . . 8 . . 2 . 1 . . 2 . . 1 . 1 . Ballistic Cannon . | . . . . . . . . . . . . . . . . . . . . . . Launcher . | . . . . . . . . . . . . . . . . . . . . . . Special Weapon . | . . . . . . . . . . . . . . . . . . . . . . Impact Weapon . | . . . . . . . . . . . . . . . . . . . . . . Slashing Weapon . | . . . . . . . . . . . . . . . . . . . . . . Piercing Weapon . | . . . . . . . . . . . . . . . . . . . . . . Special Melee Weapon . | . . . . . . . . . . . . . . . . . . . . . . Unidentified Prototypes 6 | . . . . . . . 2 . . 1 . 1 . . 1 . . . . . 1 Parts Lost . | . . . . . . . . . . . . . . . . . . . . . . Power . | . . . . . . . . . . . . . . . . . . . . . . Propulsion . | . . . . . . . . . . . . . . . . . . . . . . Utility . | . . . . . . . . . . . . . . . . . . . . . . Weapon . | . . . . . . . . . . . . . . . . . . . . . . Highest Loss Streak . | . . . . . . . . . . . . . . . . . . . . . . To Critical Strikes . | . . . . . . . . . . . . . . . . . . . . . . Average Slot Usage (%) 93 | . 100 87 94 100 100 100 100 92 86 91 93 93 93 93 92 93 93 93 93 93 93 Engine 6 | . 14 12 10 10 10 10 5 6 6 6 6 6 6 6 6 6 6 6 6 5 4 Hover 19 | . . . . . . . 16 25 26 26 26 25 25 25 25 25 25 25 25 23 22 Flight 4 | . . 24 30 30 30 30 9 . . . . . . . . . . . . . . Device 10 | . 14 12 10 10 10 10 8 6 6 6 6 9 12 12 11 12 12 12 12 16 17 Storage 2 | . 14 12 10 10 10 10 8 3 . . . . . . . . . . . . . Processor 10 | . . . 3 10 10 10 12 14 13 13 13 12 12 12 12 12 12 12 12 11 11 Protection 4 | . . . . . . . . 3 6 6 6 6 6 6 5 6 6 6 6 5 5 Ballistic Gun 30 | . 28 25 28 30 30 30 33 29 26 31 33 31 31 31 31 31 31 31 31 29 29 Naked Turns . | . . . . . . . . . . . . . . . . . . . . . . Heaviest Build 60 | 10 10 10 15 15 15 15 24 42 42 45 45 48 48 48 54 54 54 54 54 60 60 Greatest Support 57 | 20 20 20 27 27 27 27 39 48 48 48 50 50 50 50 56 56 56 56 56 56 57 Greatest Overweight (x) 1 | 1 . . . . . . . . . . . . . . . . . . . 1 1 Average Overweight (x) . | . . . . . . . . . . . . . . . . . . . . . 1 Largest Inventory Capacity 6 | 4 4 4 4 4 4 4 4 4 4 4 4 5 5 5 6 6 6 6 6 6 6 Average Capacity 4 | 3 4 4 4 4 4 4 4 4 4 4 4 4 5 5 5 6 6 6 6 6 6 Most Carried 6 | . 4 4 4 4 4 4 4 4 4 4 4 5 5 5 6 6 6 6 6 6 5 Average Carried 4 | . 2 2 2 4 4 4 3 4 4 4 4 4 5 5 5 6 6 6 6 5 5 Final Capacity 6 | 4 4 4 4 4 4 4 4 4 4 4 4 5 5 5 6 6 6 6 6 6 6 Final Carried 6 | . 4 2 4 4 4 4 4 4 4 4 4 5 5 5 6 6 6 6 6 5 5 Class Distribution -------------------- 47% | Hacker-Gunner 11% | Scavenger-Gunner 11% | Gunner 10% | Sprinter 7% | Commander-Gunner 5% | Scavenger-Mutant 5% | Mutant Dominant Class ---------------- Mutant | -10/Materials Scavenger-Mutant | -10/Mines Sprinter | -9/Materials Sprinter | -9/Mines Sprinter | -9/Exiles Sprinter | -8/Mines Gunner | -8/Materials Gunner | -8/Garrison Commander-Gunner | -8/Materials Scavenger-Gunner | -8/Storage Scavenger-Gunner | -8/Garrison Hacker-Gunner | -7/Factory Hacker-Gunner | -7/Garrison Hacker-Gunner | -7/Factory Hacker-Gunner | -7/Garrison Hacker-Gunner | -7/Factory Hacker-Gunner | -7/Lower Caves Hacker-Gunner | -7/Lower Caves Hacker-Gunner | -7/Data Miner Hacker-Gunner | -6/Proximity Caves Hacker-Gunner | -6/Factory Resources | -11 -10 -10 -9 -9 -9 -8 -8 -8 -8 -8 -8 -7 -7 -7 -7 -7 -7 -7 -7 -6 -6 ----------- Run | Jun Mat Min Mat Min Exi Min Mat Gar Mat Sto Gar Fac Gar Fac Gar Fac Low Low Dat Pro Fac Matter Collected 8996 | 414 158 140 593 25 . 61 942 1512 455 336 1265 417 440 50 878 574 145 197 . 116 278 Remotely 6212 | . . . . . . . 480 1503 455 336 1257 417 440 50 878 396 . . . . . Salvage Created 14679 | 242 190 134 997 25 . 119 949 1540 784 570 1213 946 1167 134 2096 1457 374 500 . 279 963 Parts 902 | 13 18 9 76 3 . 10 49 86 64 36 89 52 68 7 122 87 29 28 . 10 46 Haulers Intercepted 18 | . . . 3 . . . 3 . 3 2 . 2 . . . 3 . . . . 2 Recyclers Shooed 2 | 1 . . 1 . . . . . . . . . . . . . . . . . . Parts Field Recycled . | . . . . . . . . . . . . . . . . . . . . . . Retrieved Matter . | . . . . . . . . . . . . . . . . . . . . . . Parts Self-Destructed 67 | . . . . . . . . . . . . . . . . . 29 28 . 10 . Prevented . | . . . . . . . . . . . . . . . . . . . . . . Kills | -11 -10 -10 -9 -9 -9 -8 -8 -8 -8 -8 -8 -7 -7 -7 -7 -7 -7 -7 -7 -6 -6 ------- Run | Jun Mat Min Mat Min Exi Min Mat Gar Mat Sto Gar Fac Gar Fac Gar Fac Low Low Dat Pro Fac Combat Hostiles Destroyed 292 | . 8 7 17 2 . 5 15 31 14 9 38 13 35 2 42 20 10 9 . 7 8 Guns 292 | . 8 7 17 2 . 5 15 31 14 9 38 13 35 2 42 20 10 9 . 7 8 Classes Destroyed 21 | 3 3 1 5 . . . 2 1 . . . . . 1 2 1 . 1 . 1 . Worker 8 | 2 . . . . . . 1 . 1 . . 1 . . . 2 . . . . 1 Builder 5 | . . . 1 . . . . . 2 . . . . . . 1 . . . . 1 Tunneler 6 | 4 . . . . . . . . . . . 1 . . . . . . . . 1 Hauler 18 | . . . 3 . . . 3 . 3 2 . 2 . . . 3 . . . . 2 Recycler 3 | 1 . . . . . . . . . . . 1 . . . . . . . . 1 Minesweeper 1 | . . . . . . . . . . . . . . . . . . 1 . . . Mechanic 1 | . . . . . . . . . . . . . . 1 . . . . . . . Operator 4 | . . . . . . . 1 . . . . . . . 1 1 . . . . 1 Drone 2 | . . . . . . . . . . . . . . . . . . . . 2 . Watcher 18 | . 1 . 3 . . . 2 1 3 . . 2 . . . 4 . . . . 2 Swarmer 68 | . 6 . . 2 . . . 7 2 . 10 3 22 . 4 2 3 3 . 2 2 Grunt 135 | . 2 4 8 . . 3 11 18 7 5 16 3 7 . 24 9 7 4 . 2 5 Brawler 4 | . . . 1 . . . . . 1 . . . . . . 1 . 1 . . . Duelist 6 | . . . 1 . . 2 1 1 . . . . . . . 1 . . . . . Protector 1 | . . . . . . . . . . . . . . . . 1 . . . . . Sentry 52 | . . . 7 . . . 2 4 4 4 7 7 5 2 5 3 . . . 1 1 Specialist 1 | . . . . . . . . . . . . . . . 1 . . . . . . Hunter 5 | . . . . . . . 1 . . . . . . . . 3 . 1 . . . Programmer 14 | . . . . . . . . 1 . . 5 . 1 . 7 . . . . . . Heavy 1 | . . . . . . . . . . . . . . . 1 . . . . . . Assembled 3 | . . 3 . . . . . . . . . . . . . . . . . . . Best Kill Streak 15 | 3 9 2 8 2 . 3 15 14 12 4 10 12 12 2 9 6 7 4 . 4 4 Combat Bots Only 14 | . 8 2 4 2 . 3 5 14 6 4 10 4 12 1 9 5 7 4 . 4 4 Max Kills in Single Turn 3 | 1 1 1 1 1 . 1 2 2 2 1 3 2 3 1 2 2 2 2 . 2 2 Gunslinging 2 | . . . . . . . 1 1 1 . 1 . 2 . 1 1 1 1 . 1 . Exploded . | . . . . . . . . . . . . . . . . . . . . . . Melee . | . . . . . . . . . . . . . . . . . . . . . . Uniques/NPCs Destroyed . | . . . . . . . . . . . . . . . . . . . . . . Combat | -11 -10 -10 -9 -9 -9 -8 -8 -8 -8 -8 -8 -7 -7 -7 -7 -7 -7 -7 -7 -6 -6 -------- Run | Jun Mat Min Mat Min Exi Min Mat Gar Mat Sto Gar Fac Gar Fac Gar Fac Low Low Dat Pro Fac Damage Taken 5991 | . 106 343 261 13 . 77 348 515 104 100 645 242 939 54 1071 444 148 220 . 99 262 Core 4028 | . 85 276 207 11 . 59 273 372 72 68 402 160 584 31 679 283 108 128 . 63 167 Absorbed by Shields 41 | . . . . . . . . . . 3 . . . . 38 . . . . . . Redirected to Core 3568 | . 62 226 168 4 . 59 242 310 61 68 378 146 528 27 601 275 108 117 . 50 138 Core Remaining (%) 99 | 100 . 99 . . . 100 . . . . 100 . . . . . . . . 100 . Volleys Fired 607 | 22 13 20 56 3 . 12 37 84 26 17 64 27 44 5 74 48 12 15 . 7 21 Largest 5 | 2 2 2 3 3 . 3 4 4 4 5 5 5 5 5 5 5 5 5 . 5 5 Hottest 161 | 40 40 40 69 69 . 69 100 100 100 123 123 123 123 123 145 145 145 153 . 161 161 Shots Fired 2533 | 44 26 40 151 9 . 36 142 334 103 78 318 135 220 25 370 229 58 75 . 35 105 Gun 2533 | 44 26 40 151 9 . 36 142 334 103 78 318 135 220 25 370 229 58 75 . 35 105 Cannon . | . . . . . . . . . . . . . . . . . . . . . . Launcher . | . . . . . . . . . . . . . . . . . . . . . . Special . | . . . . . . . . . . . . . . . . . . . . . . Kinetic 2533 | 44 26 40 151 9 . 36 142 334 103 78 318 135 220 25 370 229 58 75 . 35 105 Thermal . | . . . . . . . . . . . . . . . . . . . . . . Explosive . | . . . . . . . . . . . . . . . . . . . . . . Electromagnetic . | . . . . . . . . . . . . . . . . . . . . . . Robot Hit Streak 99 | 9 11 15 23 3 . 17 23 99 20 22 46 33 34 8 33 33 31 12 . 18 18 Robot Miss Streak 5 | 1 2 2 4 3 . 2 2 1 2 2 2 2 2 1 2 2 1 2 . 5 4 Penetration Max 3 | . . . . . . . . . . . . . . . 3 1 2 1 . 1 1 Secondary Targets 83 | . 1 2 2 1 . 2 3 12 3 1 17 . 14 . 15 3 2 2 . 1 2 Max Gunslinging Chain 2 | . 1 1 1 1 . 1 1 2 1 1 2 . 2 . 2 2 1 1 . 1 1 Shots Hit Robots 1636 | 31 18 30 106 4 . 29 104 240 70 51 149 89 123 15 237 155 44 53 . 23 65 Core Hits 693 | 8 11 13 42 2 . 12 40 87 35 22 69 39 58 7 96 71 19 21 . 10 31 Critical Kills 37 | . . . . . . . 1 1 . . . 2 1 1 3 10 2 5 . 5 6 Critical Parts Destroyed 35 | . . . 1 . . . 2 2 . . . . 2 . 5 7 3 4 . 3 6 Critical Strikes 72 | . . . 1 . . . 3 3 . . . 2 3 1 8 17 5 9 . 8 12 Destroy 72 | . . . 1 . . . 3 3 . . . 2 3 1 8 17 5 9 . 8 12 Melee Attacks . | . . . . . . . . . . . . . . . . . . . . . . Impact . | . . . . . . . . . . . . . . . . . . . . . . Slashing . | . . . . . . . . . . . . . . . . . . . . . . Piercing . | . . . . . . . . . . . . . . . . . . . . . . Sneak Attacks . | . . . . . . . . . . . . . . . . . . . . . . Combat Hostiles . | . . . . . . . . . . . . . . . . . . . . . . Follow-up Attacks . | . . . . . . . . . . . . . . . . . . . . . . Damage Inflicted 30121 | 351 213 363 1661 69 . 480 1967 3886 1461 978 3256 1810 2522 299 4692 2465 708 937 . 440 1563 Guns 29915 | 351 213 363 1661 69 . 480 1967 3886 1424 978 3256 1810 2522 299 4692 2438 708 937 . 440 1421 Cannons . | . . . . . . . . . . . . . . . . . . . . . . Explosions 206 | . . . . . . . . . 37 . . . . . . 27 . . . . 142 Melee . | . . . . . . . . . . . . . . . . . . . . . . Ramming . | . . . . . . . . . . . . . . . . . . . . . . Kinetic 29915 | 351 213 363 1661 69 . 480 1967 3886 1424 978 3256 1810 2522 299 4692 2438 708 937 . 440 1421 Thermal 179 | . . . . . . . . . 37 . . . . . . . . . . . 142 Explosive . | . . . . . . . . . . . . . . . . . . . . . . Electromagnetic 27 | . . . . . . . . . . . . . . . . 27 . . . . . Impact . | . . . . . . . . . . . . . . . . . . . . . . Slashing . | . . . . . . . . . . . . . . . . . . . . . . Piercing . | . . . . . . . . . . . . . . . . . . . . . . Highest Corruption 8 | . . . . . . . 5 5 5 5 8 1 1 1 4 5 . . . . . Average Corruption 3 | . . . . . . . 5 5 5 5 7 1 1 1 2 4 . . . . . Corruption Purged 5 | . . . . . . . . . . . . . . . . 5 . . . . . Corruption Blocked . | . . . . . . . . . . . . . . . . . . . . . . Effects 86 | . . . . . . . 7 25 7 7 22 2 . 1 6 9 . . . . . Message Errors 21 | . . . . . . . . 7 1 2 6 . . 1 . 4 . . . . . Matter Fused 23 | . . . . . . . 1 7 4 . 6 1 . . 3 1 . . . . . Heat Flow Errors 6 | . . . . . . . 1 2 1 1 . . . . . 1 . . . . . Energy Discharges 8 | . . . . . . . . 4 . . 3 1 . . . . . . . . . Data Loss (minor) 5 | . . . . . . . . 1 . 1 1 . . . 2 . . . . . . Data Loss (major) 1 | . . . . . . . . 1 . . . . . . . . . . . . . Misfires 4 | . . . . . . . . . . . 2 . . . . 2 . . . . . Alerts 5 | . . . . . . . 1 1 . 2 . . . . 1 . . . . . . Weapon Failures 13 | . . . . . . . 4 2 1 1 4 . . . . 1 . . . . . Overload Shots . | . . . . . . . . . . . . . . . . . . . . . . Overflow Damage 41 | . . . . . . . . . . . . . . . . . . . . . 41 Projectiles . | . . . . . . . . . . . . . . . . . . . . . . Explosions 41 | . . . . . . . . . . . . . . . . . . . . . 41 Melee . | . . . . . . . . . . . . . . . . . . . . . . Knockbacks . | . . . . . . . . . . . . . . . . . . . . . . Impact . | . . . . . . . . . . . . . . . . . . . . . . Kinetic . | . . . . . . . . . . . . . . . . . . . . . . Secondary . | . . . . . . . . . . . . . . . . . . . . . . Self-Inflicted Damage 254 | . . . . . . . . . . . . . . . . 194 . . . . 60 Shots 5 | . . . . . . . . . . . . . . . . 4 . . . . 1 Rammed . | . . . . . . . . . . . . . . . . . . . . . . Targets Rammed . | . . . . . . . . . . . . . . . . . . . . . . Kicked . | . . . . . . . . . . . . . . . . . . . . . . Crushed . | . . . . . . . . . . . . . . . . . . . . . . Highest Temperature 350 | . 2 22 144 88 . 224 149 259 89 236 108 116 218 75 350 294 240 346 . 208 302 Average Temperature 62 | . 2 10 54 40 . 101 29 36 21 40 34 47 63 40 92 78 99 103 . 75 80 Received Heat Transfer 2486 | . 51 124 165 . . 54 198 279 72 60 198 90 312 24 439 96 99 144 . 12 69 Effects 6 | . . . . . . . . 1 . . . . . . 1 . 3 1 . . . Shutdowns 1 | . . . . . . . . . . . . . . . . . . 1 . . . Energy Bleed 2 | . . . . . . . . 1 . . . . . . 1 . . . . . . Interference 3 | . . . . . . . . . . . . . . . . . 3 . . . . Siege Activations . | . . . . . . . . . . . . . . . . . . . . . . Robots Corrupted . | . . . . . . . . . . . . . . . . . . . . . . Combat Hostiles . | . . . . . . . . . . . . . . . . . . . . . . Parts Fried . | . . . . . . . . . . . . . . . . . . . . . . Impact Corruptions . | . . . . . . . . . . . . . . . . . . . . . . Robots Melted . | . . . . . . . . . . . . . . . . . . . . . . Combat Hostiles . | . . . . . . . . . . . . . . . . . . . . . . Parts Melted . | . . . . . . . . . . . . . . . . . . . . . . Heat Transferred 150 | . . . . . . . . . 50 . . . . . . . . . . . 100 Parts Sabotaged . | . . . . . . . . . . . . . . . . . . . . . . Parts Stolen . | . . . . . . . . . . . . . . . . . . . . . . Parts Stripped . | . . . . . . . . . . . . . . . . . . . . . . Power Chain Reactions . | . . . . . . . . . . . . . . . . . . . . . . Missiles Intercepted . | . . . . . . . . . . . . . . . . . . . . . . Alert | -11 -10 -10 -9 -9 -9 -8 -8 -8 -8 -8 -8 -7 -7 -7 -7 -7 -7 -7 -7 -6 -6 ------- Run | Jun Mat Min Mat Min Exi Min Mat Gar Mat Sto Gar Fac Gar Fac Gar Fac Low Low Dat Pro Fac Peak Influence 1611 | 35 269 203 770 319 . 159 345 1107 1039 601 1524 1519 1611 836 1569 1345 . . . . 527 Initial 814 | . 19 88 66 254 . . 52 196 464 373 342 692 814 732 515 713 . . . . 150 Average 729 | 17 186 140 400 297 . 54 161 734 831 498 977 1237 1321 781 1005 1082 . . . . 282 Maximum Alert Level 5 | . 1 1 3 1 . . 1 4 3 2 4 4 5 3 4 4 . . . . 2 Low Security (%) 16 | 100 35 79 20 . . 100 60 1 . . . . . . . . . . . . 22 Level 1 16 | . 64 20 28 100 . . 39 18 . 12 8 . . . . . . . . . 61 Level 2 15 | . . . 44 . . . . 22 27 87 18 7 . . 24 . . . . . 15 Level 3 25 | . . . 6 . . . . 42 72 . 35 13 30 100 32 43 . . . . . Level 4 24 | . . . . . . . . 14 . . 38 79 52 . 43 56 . . . . . Level 5 1 | . . . . . . . . . . . . . 17 . . . . . . . . High Security . | . . . . . . . . . . . . . . . . . . . . . . Max Security . | . . . . . . . . . . . . . . . . . . . . . . Squads Dispatched 20 | . . . 2 . . . 2 . 1 . . 9 . . . 3 . . . . 3 Investigation 4 | . . . . . . . . . 1 . . 2 . . . 1 . . . . . Extermination . | . . . . . . . . . . . . . . . . . . . . . . Reinforcement 6 | . . . 2 . . . 2 . . . . 1 . . . . . . . . 1 Assault 3 | . . . . . . . . . . . . 1 . . . 1 . . . . 1 Garrison 7 | . . . . . . . . . . . . 5 . . . 1 . . . . 1 Intercept . | . . . . . . . . . . . . . . . . . . . . . . Searches Triggered . | . . . . . . . . . . . . . . . . . . . . . . Construction Impeded . | . . . . . . . . . . . . . . . . . . . . . . Haulers Reinforced 2 | . . . . . . . . . . . . 1 . . . . . . . . 1 Active Scanning Responses . | . . . . . . . . . . . . . . . . . . . . . . Cargo Convoy Interrupts . | . . . . . . . . . . . . . . . . . . . . . . Stealth | -11 -10 -10 -9 -9 -9 -8 -8 -8 -8 -8 -8 -7 -7 -7 -7 -7 -7 -7 -7 -6 -6 --------- Run | Jun Mat Min Mat Min Exi Min Mat Gar Mat Sto Gar Fac Gar Fac Gar Fac Low Low Dat Pro Fac Distress Signals 6 | . 1 . . . . . 3 . 1 1 . . . . . . . . . . . Communications Jammed . | . . . . . . . . . . . . . . . . . . . . . . Distress Signals . | . . . . . . . . . . . . . . . . . . . . . . Times Spotted 336 | . 11 29 28 3 . 6 17 30 16 12 35 16 27 2 39 30 8 7 . 7 13 Peak Tracking Total 16 | . 5 16 3 3 . 3 3 10 3 3 6 6 4 1 5 5 4 4 . 5 4 Tactical Retreats 10 | . 1 3 . 1 . . . . . . 1 . . . 3 . . . . 1 . Traps | -11 -10 -10 -9 -9 -9 -8 -8 -8 -8 -8 -8 -7 -7 -7 -7 -7 -7 -7 -7 -6 -6 ------- Run | Jun Mat Min Mat Min Exi Min Mat Gar Mat Sto Gar Fac Gar Fac Gar Fac Low Low Dat Pro Fac Traps Triggered 35 | . . . . . . . . 8 3 4 4 1 6 . 9 . . . . . . Indirectly . | . . . . . . . . . . . . . . . . . . . . . . Trap Hack Attempts . | . . . . . . . . . . . . . . . . . . . . . . Triggered . | . . . . . . . . . . . . . . . . . . . . . . Disarmed . | . . . . . . . . . . . . . . . . . . . . . . Reprogrammed . | . . . . . . . . . . . . . . . . . . . . . . Reused . | . . . . . . . . . . . . . . . . . . . . . . Traps Extracted . | . . . . . . . . . . . . . . . . . . . . . . Installed . | . . . . . . . . . . . . . . . . . . . . . . Triggered . | . . . . . . . . . . . . . . . . . . . . . . Machines | -11 -10 -10 -9 -9 -9 -8 -8 -8 -8 -8 -8 -7 -7 -7 -7 -7 -7 -7 -7 -6 -6 ---------- Run | Jun Mat Min Mat Min Exi Min Mat Gar Mat Sto Gar Fac Gar Fac Gar Fac Low Low Dat Pro Fac Machines Disabled 47 | . . . 4 . . . 2 4 2 . 6 11 . . 4 9 1 . . . 4 Max in Single Turn 4 | . . . 1 . . . 2 1 1 . 2 1 . . 1 4 1 . . . 2 Garrison Access 2 | . . . . . . . . . . . . 1 . . . 1 . . . . . Garrison Relay 7 | . . . . . . . . 4 . . 2 . . . 1 . . . . . . Machines Repaired . | . . . . . . . . . . . . . . . . . . . . . . Machines Sabotaged . | . . . . . . . . . . . . . . . . . . . . . . Overloaded Fab Kills . | . . . . . . . . . . . . . . . . . . . . . . Hacking | -11 -10 -10 -9 -9 -9 -8 -8 -8 -8 -8 -8 -7 -7 -7 -7 -7 -7 -7 -7 -6 -6 --------- Run | Jun Mat Min Mat Min Exi Min Mat Gar Mat Sto Gar Fac Gar Fac Gar Fac Low Low Dat Pro Fac Machines Accessed 60 | . 3 1 4 . 1 . 6 2 2 5 5 6 2 2 2 9 1 3 2 . 4 Terminals 45 | . 3 1 4 . . . 5 2 2 4 5 3 2 1 2 7 1 . . . 3 Fabricators 2 | . . . . . . . . . . . . 1 . . . 1 . . . . . Repair Stations . | . . . . . . . . . . . . . . . . . . . . . . Recycling Units . | . . . . . . . . . . . . . . . . . . . . . . Scanalyzers . | . . . . . . . . . . . . . . . . . . . . . . Garrison Access 7 | . . . . . . . 1 . . 1 . 2 . 1 . 1 . . . . 1 Total Hacks 176 | . 6 1 12 . 23 . 19 3 3 16 9 15 5 6 3 24 2 7 11 . 11 Successful 118 | . 3 1 6 . 23 . 12 1 1 9 5 9 1 3 2 15 2 7 11 . 7 Failed 58 | . 3 . 6 . . . 7 2 2 7 4 6 4 3 1 9 . . . . 4 Catastrophic 10 | . 2 . . . . . . 1 1 . 2 1 . 1 . 1 . . . . 1 Database Lockouts . | . . . . . . . . . . . . . . . . . . . . . . Manual 93 | . 6 . 12 . . . 18 . 3 10 1 10 . 5 . 19 . . . . 9 Terminals 121 | . 6 1 12 . . . 18 3 3 15 9 10 5 5 3 20 2 . . . 9 Fabricators 4 | . . . . . . . . . . . . 2 . . . 2 . . . . . Repair Stations . | . . . . . . . . . . . . . . . . . . . . . . Recycling Units . | . . . . . . . . . . . . . . . . . . . . . . Scanalyzers . | . . . . . . . . . . . . . . . . . . . . . . Garrison Access 10 | . . . . . . . 1 . . 1 . 3 . 1 . 2 . . . . 2 Terminal Hacks 77 | . 1 1 2 . 23 . 6 1 . 4 5 1 1 1 2 6 2 7 11 . 3 Record 37 | . . 1 . . 23 . . . . . . . . . . . 2 5 6 . . Part Schematic 2 | . . . . . . . . . . . . 1 . . . 1 . . . . . Robot Schematic 5 | . . . . . . . . . . . . . . . . . . . 5 . . Open Door 3 | . . . . . . . . . . . 1 . . . . . . 2 . . . Level Access Points 1 | . . . . . . . . . . . . . . . . . . . . . 1 Branch Access Points 8 | . 1 . 1 . . . 3 . . 1 . . . . . 1 . . . . 1 Emergency Access Points 3 | . . . . . . . . 1 . . 1 . . . 1 . . . . . . Machine Index 1 | . . . . . . . . . . . . . . . . . . . . . 1 Fabricator Index 1 | . . . . . . . . . . . . . . . . 1 . . . . . Garrison Index 3 | . . . 1 . . . 1 . . . . . . 1 . . . . . . . Alert Level 1 | . . . . . . . . . . 1 . . . . . . . . . . . Unreport Threat 6 | . . . . . . . 2 . . 1 . . . . . 3 . . . . . Locate Traps 1 | . . . . . . . . . . 1 . . . . . . . . . . . Garrison Registry 2 | . . . . . . . . . . . 1 . . . 1 . . . . . . Patrol Navigation 2 | . . . . . . . . . . . 1 . 1 . . . . . . . . Security Stations 1 | . . . . . . . . . . . 1 . . . . . . . . . . Fabricator Hacks 4 | . . . . . . . . . . . . 2 . . . 2 . . . . . Load Schematic 2 | . . . . . . . . . . . . 1 . . . 1 . . . . . Build 2 | . . . . . . . . . . . . 1 . . . 1 . . . . . Repair Station Hacks . | . . . . . . . . . . . . . . . . . . . . . . Recycling Unit Hacks . | . . . . . . . . . . . . . . . . . . . . . . Scanalyzer . | . . . . . . . . . . . . . . . . . . . . . . Garrison Access Hacks 8 | . . . . . . . 1 . . 1 . 3 . 1 . 1 . . . . 1 Unlock Access 6 | . . . . . . . 1 . . 1 . 2 . 1 . . . . . . 1 Seal Access 2 | . . . . . . . . . . . . 1 . . . 1 . . . . . Unauthorized Hacks 29 | . 2 . 4 . . . 5 . 1 4 . 3 . 1 . 6 . . . . 3 Terminals 29 | . 2 . 4 . . . 5 . 1 4 . 3 . 1 . 6 . . . . 3 Botnet 29 | . 2 . 4 . . . 5 . 1 4 . 3 . 1 . 6 . . . . 3 Fabricators . | . . . . . . . . . . . . . . . . . . . . . . Repair Stations . | . . . . . . . . . . . . . . . . . . . . . . Recycling Units . | . . . . . . . . . . . . . . . . . . . . . . Scanalyzers . | . . . . . . . . . . . . . . . . . . . . . . Garrison Access . | . . . . . . . . . . . . . . . . . . . . . . Data Cores Recovered 2 | . . . . . . . . . . . . . . . . 1 . . . . 1 Used 1 | . . . . . . . . . . . . . . . . . . . . . 1 Hacking Detections 41 | . 3 . 4 . . . 5 2 2 4 3 5 2 1 . 8 . . . . 2 Full Trace Events 3 | . . . . . . . . . . . . 2 . . . 1 . . . . . Feedback Events 1 | . . . . . . . . . . . . 1 . . . . . . . . . Corruption 1 | . . . . . . . . . . . . 1 . . . . . . . . . Feedback Blocked . | . . . . . . . . . . . . . . . . . . . . . . Robot Schematics Acquired 5 | . . . . . . . . . . . . . . . . . . . 5 . . Robots Built . | . . . . . . . . . . . . . . . . . . . . . . Authchips . | . . . . . . . . . . . . . . . . . . . . . . Time . | . . . . . . . . . . . . . . . . . . . . . . Total Robot Build Rating . | . . . . . . . . . . . . . . . . . . . . . . Part Schematics Acquired 2 | . . . . . . . . . . . . 1 . . . 1 . . . . . Parts Built 3 | . . . . . . . . . . . . 1 . . . 2 . . . . . Authchips . | . . . . . . . . . . . . . . . . . . . . . . Time 176 | . . . . . . . . . . . . 134 . . . 42 . . . . . Total Part Build Rating 12 | . . . . . . . . . . . . 4 . . . 8 . . . . . Parts Repaired . | . . . . . . . . . . . . . . . . . . . . . . Time . | . . . . . . . . . . . . . . . . . . . . . . Parts Recycled . | . . . . . . . . . . . . . . . . . . . . . . Recycled Matter . | . . . . . . . . . . . . . . . . . . . . . . Retrieved Matter . | . . . . . . . . . . . . . . . . . . . . . . Retrieved Components . | . . . . . . . . . . . . . . . . . . . . . . Parts Scanalyzed . | . . . . . . . . . . . . . . . . . . . . . . Part Schematics Acquired . | . . . . . . . . . . . . . . . . . . . . . . Parts Damaged . | . . . . . . . . . . . . . . . . . . . . . . Bothacking | -11 -10 -10 -9 -9 -9 -8 -8 -8 -8 -8 -8 -7 -7 -7 -7 -7 -7 -7 -7 -6 -6 ------------ Run | Jun Mat Min Mat Min Exi Min Mat Gar Mat Sto Gar Fac Gar Fac Gar Fac Low Low Dat Pro Fac Used RIF Installer . | . . . . . . . . . . . . . . . . . . . . . . Robots Hacked . | . . . . . . . . . . . . . . . . . . . . . . Non-combat . | . . . . . . . . . . . . . . . . . . . . . . Combat . | . . . . . . . . . . . . . . . . . . . . . . Robot Hacks Applied . | . . . . . . . . . . . . . . . . . . . . . . Relay Couplers Released 14 | . . . . . . . . 7 . . 4 . 1 . 2 . . . . . . Machine Destruction 12 | . . . . . . . . 6 . . 4 . . . 2 . . . . . . Programmers 2 | . . . . . . . . 1 . . . . 1 . . . . . . . . Fabnet Peak Effective % . | . . . . . . . . . . . . . . . . . . . . . . Robots Rewired 8 | . . . . . . . . 8 . . . . . . . . . . . . . Allies Hacked . | . . . . . . . . . . . . . . . . . . . . . . Hacks Repelled . | . . . . . . . . . . . . . . . . . . . . . . Allies | -11 -10 -10 -9 -9 -9 -8 -8 -8 -8 -8 -8 -7 -7 -7 -7 -7 -7 -7 -7 -6 -6 -------- Run | Jun Mat Min Mat Min Exi Min Mat Gar Mat Sto Gar Fac Gar Fac Gar Fac Low Low Dat Pro Fac Total Allies 15 | . . 2 . 3 . . . 8 . . 1 . . . . . . . . 1 . Largest Group 8 | . . 2 2 4 4 3 3 8 8 5 1 1 1 . . . . . . 1 1 Highest-Rated Group 100 | . . 49 49 71 71 40 40 100 100 65 39 39 39 . . . . . . 96 96 Highest-Rated Ally 96 | . . 31 31 31 31 16 16 16 15 15 39 39 39 . . . . . . 96 96 Total Orders . | . . . . . . . . . . . . . . . . . . . . . . Ally Attacks 126 | . . . 20 . . 12 13 25 7 5 7 6 18 . . . . . . 1 12 Total Damage 2344 | . . . 185 . . 125 89 278 187 94 93 826 150 . . . . . . . 317 Kills 21 | . . . 2 . . 1 . 1 2 2 . 8 2 . . . . . . . 3 Allies Corrupted . | . . . . . . . . . . . . . . . . . . . . . . Allies Melted . | . . . . . . . . . . . . . . . . . . . . . . Intel | -11 -10 -10 -9 -9 -9 -8 -8 -8 -8 -8 -8 -7 -7 -7 -7 -7 -7 -7 -7 -6 -6 ------- Run | Jun Mat Min Mat Min Exi Min Mat Gar Mat Sto Gar Fac Gar Fac Gar Fac Low Low Dat Pro Fac Robot Analysis Total . | . . . . . . . . . . . . . . . . . . . . . . Derelict Logs Recovered 4 | . . 2 . 1 . . . . . . . . . . . . . 1 . . . Drone Launches . | . . . . . . . . . . . . . . . . . . . . . . Drone Recoveries . | . . . . . . . . . . . . . . . . . . . . . . Exploration | -11 -10 -10 -9 -9 -9 -8 -8 -8 -8 -8 -8 -7 -7 -7 -7 -7 -7 -7 -7 -6 -6 ------------- Run | Jun Mat Min Mat Min Exi Min Mat Gar Mat Sto Gar Fac Gar Fac Gar Fac Low Low Dat Pro Fac Turns Passed 7540 | 158 234 383 359 133 149 134 311 816 308 225 571 411 568 113 780 585 171 235 32 441 423 Spaces Moved 8778 | 69 156 717 396 247 193 204 419 856 427 231 595 418 709 196 779 810 258 375 72 353 298 Core 8 | 8 . . . . . . . . . . . . . . . . . . . . . Treads . | . . . . . . . . . . . . . . . . . . . . . . Legs 224 | 61 156 7 . . . . . . . . . . . . . . . . . . . Wheels . | . . . . . . . . . . . . . . . . . . . . . . Hover 6594 | . . . . . . . 217 856 427 231 595 418 709 196 779 810 258 375 72 353 298 Flight 1952 | . . 710 396 247 193 204 202 . . . . . . . . . . . . . . Fastest Speed 29 | 50 120 37 29 29 29 29 29 40 40 40 40 45 45 45 45 45 45 45 45 45 105 Average Speed 47 | 113 120 37 30 29 29 29 35 40 40 40 43 45 45 45 45 45 45 45 45 100 105 Slowest Speed 120 | 120 120 120 37 29 29 29 50 42 40 40 45 45 45 45 45 45 45 45 45 105 112 Overloaded Moves . | . . . . . . . . . . . . . . . . . . . . . . Propulsion Burnouts . | . . . . . . . . . . . . . . . . . . . . . . Robots Hopped 15 | . . 14 . . . . 1 . . . . . . . . . . . . . . Cave-ins Triggered . | . . . . . . . . . . . . . . . . . . . . . . Exploration Rate (%) 48 | 4 33 97 46 41 50 53 39 86 42 52 89 12 67 6 76 26 42 62 67 63 12 Regions Visited 21 Branch Regions 9 Pre-discovered Areas 5 | . . 1 . 1 1 . . . . . . . . . . . 1 . 1 . . Known Exits Taken 12 | . 1 . 1 . . . 1 . 1 1 . 1 . 1 . 1 1 1 1 1 . Unknown Exits Taken 5 | 1 . 1 . 1 1 1 . . . . . . . . . . . . . . . Scrap Searched 11 | . . 2 . . . 1 . . . . . . . . . . 2 4 . 2 . Spaces Dug . | . . . . . . . . . . . . . . . . . . . . . . Terrain Destroyed 120 | . . . . . . . 2 . 43 2 . . . . 1 42 2 . . 1 27 Melee . | . . . . . . . . . . . . . . . . . . . . . . Projectile 10 | . . . . . . . 2 . 2 2 . . . . . . . . . 1 3 AOE 105 | . . . . . . . . . 41 . . . . . . 40 . . . . 24 Terrain Rammed . | . . . . . . . . . . . . . . . . . . . . . . Walls Destroyed . | . . . . . . . . . . . . . . . . . . . . . . Machines Disabled . | . . . . . . . . . . . . . . . . . . . . . . Actions | -11 -10 -10 -9 -9 -9 -8 -8 -8 -8 -8 -8 -7 -7 -7 -7 -7 -7 -7 -7 -6 -6 --------- Run | Jun Mat Min Mat Min Exi Min Mat Gar Mat Sto Gar Fac Gar Fac Gar Fac Low Low Dat Pro Fac Total 10945 | 101 177 774 524 302 285 258 520 1177 518 330 784 587 870 211 1061 927 287 406 71 421 354 Wait 769 | 4 . 36 37 51 93 38 3 109 48 36 55 112 10 . 18 43 8 4 . 52 12 Move 8729 | 68 155 690 395 246 192 203 417 855 426 230 594 417 706 196 778 809 257 374 71 352 298 Hop 13 | . . 12 . . . . 1 . . . . . . . . . . . . . . Pick Up 20 | . 4 . 4 . . . 8 . . . . 1 . . 3 . . . . . . Fast Attach 48 | 7 . . 4 . . . 9 3 1 3 2 2 . . 8 1 1 1 . 1 5 Attach 3 | . . . 1 . . . 1 . . . . . . . . . . . . 1 . Detach . | . . . . . . . . . . . . . . . . . . . . . . Swap 12 | . . 2 3 . . . 7 . . . . . . . . . . . . . . Drop 53 | . . 2 6 . . . 19 2 . 2 2 1 . . 10 1 1 1 . 1 5 Fire 607 | 22 13 20 56 3 . 12 37 84 26 17 64 27 44 5 74 48 12 15 . 7 21 Melee . | . . . . . . . . . . . . . . . . . . . . . . Ram . | . . . . . . . . . . . . . . . . . . . . . . Kick . | . . . . . . . . . . . . . . . . . . . . . . Crush . | . . . . . . . . . . . . . . . . . . . . . . Escape Stasis 311 | . . . . . . . . 49 . 38 26 13 78 . 107 . . . . . . Rewire 58 | . . . . . . . . 58 . . . . . . . . . . . . . Trap . | . . . . . . . . . . . . . . . . . . . . . . Miscellaneous 322 | . 5 12 18 2 . 5 18 17 17 4 41 14 32 10 63 25 8 11 . 7 13 Route ------- -11/Junkyard -10/Materials (discovered 2 exits: *Min x2) -10/Mines (discovered 2 exits: *Mat x2) -9/Materials (discovered 2 exits: *Mat / *Min) -9/Mines -9/Exiles -8/Mines -8/Materials (discovered 3 exits: *Fac / Sto / Gar) -8/Garrison (discovered 3 exits: *Mat x3) -8/Materials -8/Storage (discovered 2 exits: Rec / Gar) -8/Garrison (discovered 3 exits: *Fac x3) -7/Factory (discovered 2 exits: *Low / Gar) -7/Garrison (discovered 4 exits: *Fac x4) -7/Factory -7/Garrison (discovered 3 exits: *Fac x3) -7/Factory (discovered 4 exits: *Fac x2 / *Low x2) -7/Lower Caves -7/Lower Caves -7/Data Miner -6/Proximity Caves -6/Factory (discovered 9 exits: Fac x4 / Low x2 / Ext x2 / Gar) History --------- Turn | Location | Event 10 | -11/Junkyard | Upgraded with Propulsion slot (x1) 10 | -11/Junkyard | Upgraded with Utility slot (x1) 10 | -11/Junkyard | Upgraded with Weapon slot (x1) 11 | -11/Junkyard | Discovered new exit (range 16) 159 | -11/Junkyard | Entered Materials 267 | -10/Materials | Destroyed 8 combat bots 310 | -10/Materials | Build established: Mutant 348 | -10/Materials | Identified exit to Mines 393 | -10/Materials | Entered Mines 395 | -10/Mines | Reached level 2 402 | -10/Mines | Upgraded with Weapon slot (x1) 411 | -10/Mines | Assembled infested the area 414 | -10/Mines | Met a Derelict bent on vengeance 416 | -10/Mines | Assisted by a Guerilla fighting off Assembled 532 | -10/Mines | Learned Materials stockpile data 621 | -10/Mines | Discovered new exit (range 6) 664 | -10/Mines | Discovered new exit (range 10) 692 | -10/Mines | Build established: Scavenger-Mutant 776 | -10/Mines | Entered Materials 776 | -9/Materials | Accompanied by 2 allies 778 | -9/Materials | Reached level 3 778 | -9/Materials | Reached level 4 781 | -9/Materials | Led the pair of lost Derelicts to an unsafe place 784 | -9/Materials | Upgraded with Propulsion slot (x1) 900 | -9/Materials | Discovered new exit (range 5) 944 | -9/Materials | Reached level 5 962 | -9/Materials | Discovered new exit (range 13) 1011 | -9/Materials | Upgraded with Utility slot (x1) 1026 | -9/Materials | Identified exit to Mines 1115 | -9/Materials | Reached level 6 1129 | -9/Materials | Build established: Sprinter 1135 | -9/Materials | Entered Mines 1135 | -9/Mines | Accompanied by 1 ally 1146 | -9/Mines | Assisted by bots powering up and referring to "LRC-V3" 1150 | -9/Mines | Deemed a non-threat by the Exiles lab entrance 1150 | -9/Mines | Discovered new exit (range 5) 1171 | -9/Mines | Learned location of Storage (-8) 1268 | -9/Mines | Entered Exiles 1268 | -9/Exiles | Accompanied by 4 allies 1276 | -9/Exiles | Met 8R-AWN 1298 | -9/Exiles | Led the pair of lost Derelicts to a safe place 1303 | -9/Exiles | Met EX-HEX 1312 | -9/Exiles | Met EX-BIN 1316 | -9/Exiles | Met EX-DEC 1326 | -9/Exiles | Discovered new exit (range 10) 1336 | -9/Exiles | Learned location of Zion (-6) 1417 | -9/Exiles | Entered Mines 1417 | -8/Mines | Accompanied by 3 allies 1419 | -8/Mines | Reached level 7 1491 | -8/Mines | Discovered new exit (range 5) 1551 | -8/Mines | Entered Materials 1551 | -8/Materials | Accompanied by 3 allies 1553 | -8/Materials | Reached level 8 1578 | -8/Materials | Upgraded with Weapon slot (x1) 1586 | -8/Materials | Discovered new exit (range 16) 1634 | -8/Materials | Identified exit to Storage 1640 | -8/Materials | Reached level 9 1681 | -8/Materials | Upgraded with Utility slot (x1) 1795 | -8/Materials | Reached level 10 1861 | -8/Materials | Identified exit to Garrison 1862 | -8/Materials | Entered Garrison 1862 | -8/Garrison | Accompanied by 3 allies 1869 | -8/Garrison | Triggered checkpoint 1882 | -8/Garrison | Triggered checkpoint 1950 | -8/Garrison | Build established: Gunner 1986 | -8/Garrison | Reached level 11 1994 | -8/Garrison | Triggered checkpoint 2077 | -8/Garrison | Destroyed 14 combat bots 2094 | -8/Garrison | Triggered checkpoint 2108 | -8/Garrison | Garrison Relay disabled 2125 | -8/Garrison | Discovered new exit (range 9) 2146 | -8/Garrison | Triggered checkpoint 2161 | -8/Garrison | Triggered checkpoint 2168 | -8/Garrison | Garrison Relay disabled 2212 | -8/Garrison | Reached level 12 2214 | -8/Garrison | Discovered new exit (range 14) 2228 | -8/Garrison | Upgraded with Propulsion slot (x1) 2228 | -8/Garrison | Upgraded with Utility slot (x1) 2228 | -8/Garrison | Upgraded with Weapon slot (x1) 2303 | -8/Garrison | Discovered new exit (range 10) 2354 | -8/Garrison | Triggered checkpoint 2433 | -8/Garrison | Garrison Relay disabled 2560 | -8/Garrison | Garrison Relay disabled 2590 | -8/Garrison | Identified exit to Materials 2678 | -8/Garrison | Entered Materials 2678 | -8/Materials | Accompanied by 8 allies 2785 | -8/Materials | Build established: Commander-Gunner 2809 | -8/Materials | Reached level 13 2837 | -8/Materials | Discovered exit to Storage (range 6) 2986 | -8/Materials | Entered Storage 2986 | -8/Storage | Accompanied by 5 allies 3037 | -8/Storage | Identified exit to Recycling 3181 | -8/Storage | Identified exit to Garrison 3211 | -8/Storage | Entered Garrison 3211 | -8/Garrison | Accompanied by 1 ally 3216 | -8/Garrison | Reached level 14 3253 | -8/Garrison | Triggered checkpoint 3266 | -8/Garrison | Garrison Relay disabled 3266 | -8/Garrison | Garrison Relay disabled 3330 | -8/Garrison | Build established: Scavenger-Gunner 3342 | -8/Garrison | Triggered checkpoint 3407 | -8/Garrison | Discovered new exit (range 9) 3412 | -8/Garrison | Triggered checkpoint 3460 | -8/Garrison | Triggered checkpoint 3478 | -8/Garrison | Triggered checkpoint 3508 | -8/Garrison | Triggered checkpoint 3529 | -8/Garrison | Rescued a captive Derelict 3544 | -8/Garrison | Learned Factory security intel 3651 | -8/Garrison | Discovered new exit (range 14) 3651 | -8/Garrison | Discovered new exit (range 79) 3651 | -8/Garrison | Discovered new exit (range 56) 3656 | -8/Garrison | Triggered checkpoint 3678 | -8/Garrison | Triggered checkpoint 3745 | -8/Garrison | Destroyed 10 combat bots 3753 | -8/Garrison | Identified exit to Factory 3782 | -8/Garrison | Entered Factory 3782 | -7/Factory | Accompanied by 1 ally 3784 | -7/Factory | Reached level 15 3813 | -7/Factory | Identified exit to Garrison 3823 | -7/Factory | Identified exit to Garrison 3872 | -7/Factory | Reached level 16 3920 | -7/Factory | Discovered new exit (range 5) 3925 | -7/Factory | Identified exit to Lower Caves 3960 | -7/Factory | Upgraded with Utility slot (x1) 3998 | -7/Factory | Garrison activated, responded to threat 4180 | -7/Factory | Fabricated Cld. Particle Cannon? 4182 | -7/Factory | First assault squad dispatched 4190 | -7/Factory | Build established: Hacker-Gunner 4193 | -7/Factory | Entered Garrison 4193 | -7/Garrison | Accompanied by 1 ally 4249 | -7/Garrison | Triggered checkpoint 4296 | -7/Garrison | Triggered checkpoint 4328 | -7/Garrison | Discovered new exit (range 5) 4339 | -7/Garrison | Identified exit to Factory 4356 | -7/Garrison | Destroyed 8 combat bots 4384 | -7/Garrison | Triggered checkpoint 4384 | -7/Garrison | Reached level 17 4399 | -7/Garrison | Triggered checkpoint 4408 | -7/Garrison | Destroyed 8 combat bots 4431 | -7/Garrison | Triggered checkpoint 4450 | -7/Garrison | Triggered checkpoint 4491 | -7/Garrison | Destroyed 12 combat bots 4496 | -7/Garrison | Discovered exit to Factory (range 12) 4510 | -7/Garrison | Triggered checkpoint 4572 | -7/Garrison | Discovered exit to Factory (range 8) 4595 | -7/Garrison | Triggered checkpoint 4653 | -7/Garrison | Discovered exit to Factory (range 14) 4658 | -7/Garrison | Triggered checkpoint 4684 | -7/Garrison | Attempted to access garrison exit controls, blocked by remote lockdown 4720 | -7/Garrison | Attempted to access garrison exit controls, blocked by remote lockdown 4761 | -7/Garrison | Entered Factory 4874 | -7/Factory | Identified exit to Garrison 4874 | -7/Factory | Entered Garrison 4914 | -7/Garrison | Triggered checkpoint 5124 | -7/Garrison | Triggered checkpoint 5124 | -7/Garrison | Destroyed 9 combat bots 5133 | -7/Garrison | Triggered checkpoint 5148 | -7/Garrison | Triggered checkpoint 5192 | -7/Garrison | Triggered checkpoint 5255 | -7/Garrison | Heavy support dispatched to Factory 5257 | -7/Garrison | Discovered new exit (range 12) 5272 | -7/Garrison | Identified exit to Factory 5337 | -7/Garrison | Found Prototype Device 5337 | -7/Garrison | Identified Active Sensor Suite 5386 | -7/Garrison | Discovered exit to Factory (range 14) 5405 | -7/Garrison | Triggered checkpoint 5439 | -7/Garrison | Discovered exit to Factory (range 60) 5439 | -7/Garrison | Discovered exit to Factory (range 10) 5439 | -7/Garrison | Discovered exit to Factory (range 55) 5446 | -7/Garrison | Triggered checkpoint 5476 | -7/Garrison | Triggered checkpoint 5502 | -7/Garrison | Triggered checkpoint 5530 | -7/Garrison | Triggered checkpoint 5537 | -7/Garrison | Reached level 18 5558 | -7/Garrison | Destroyed 9 combat bots 5647 | -7/Garrison | Destroyed 7 combat bots 5654 | -7/Garrison | Entered Factory 5684 | -7/Factory | Garrison activated, responded to threat 5875 | -7/Factory | Discovered new exit (range 15) 6054 | -7/Factory | First assault squad dispatched 6062 | -7/Factory | Fabricated System Restoration Module (x2) 6142 | -7/Factory | Discovered new exit (range 8) 6148 | -7/Factory | Identified exit to Factory 6239 | -7/Factory | Entered Lower Caves 6253 | -7/Lower Caves | Met a Warlord Commander 6254 | -7/Lower Caves | Learned location of Warlord (-4) 6273 | -7/Lower Caves | Found Encrypted Comm Array 6344 | -7/Lower Caves | Attracted the attention of an 0b10 base 6393 | -7/Lower Caves | Destroyed 7 combat bots 6404 | -7/Lower Caves | Discovered new exit (range 16) 6410 | -7/Lower Caves | Identified exit to Lower Caves 6410 | -7/Lower Caves | Entered another Lower Caves area 6443 | -7/Lower Caves | Learned Research stockpile data 6443 | -7/Lower Caves | Learned Armory security intel 6443 | -7/Lower Caves | Learned Factory trap positions 6630 | -7/Lower Caves | Discovered new exit (range 6) 6636 | -7/Lower Caves | Identified exit to Data Miner 6645 | -7/Lower Caves | Entered Data Miner 6645 | -7/Data Miner | Discovered new exit (range 6) 6654 | -7/Data Miner | Met Data Miner 6662 | -7/Data Miner | Learned location of Section 7 (-2) 6662 | -7/Data Miner | Acquired the access code to Warlord's prototype stash 6667 | -7/Data Miner | Received God Mode back door access code from Data Miner 6677 | -7/Data Miner | Identified exit to Proximity Caves 6677 | -7/Data Miner | Entered Proximity Caves 6679 | -6/Proximity Caves | Reached level 19 6679 | -6/Proximity Caves | Spotter reported a threat 6698 | -6/Proximity Caves | Upgraded with Utility slot (x1) 6899 | -6/Proximity Caves | Escorted by Enhanced Grunt 6902 | -6/Proximity Caves | Attracted the attention of an 0b10 checkpoint 6958 | -6/Proximity Caves | Discovered exit to Factory (range 7) 7007 | -6/Proximity Caves | Received a Behemoth hack from an annoying Tinkerer 7118 | -6/Proximity Caves | Entered Factory 7118 | -6/Factory | Accompanied by 1 ally 7119 | -6/Factory | Identified exit to Extension 7120 | -6/Factory | Loaded intel: 95 trap records 7189 | -6/Factory | Identified exit to Lower Caves 7238 | -6/Factory | Identified exit to Factory 7444 | -6/Factory | Garrison activated, responded to threat 7468 | -6/Factory | First assault squad dispatched 7515 | -6/Factory | Identified exit to Garrison 7541 | -6/Factory | Self-destructed Last Messages --------------- 07487_ T-07 Excavator destroyed. 07488_ Acquired 35 matter. 07492_ Acquired 61 matter. 07494_ R-10 Processor collects Carbon-fiber Leg. 07515_ Connecting with Garrison Access... >>Unlock Access door unlocked. 07515_ EXIT=UNLOCKED: GARRISON 07518_ Assembly Bed disabled. 07518_ HV Slug penetrates G-50 Soldier. 07519_ K-01 Serf collects debris. 07521_ K-01 Serf destroyed. 07522_ HV Slug penetrates G-50 Soldier. 07522_ G-50 Soldier suffers critical hit (Destroy). 07522_ G-50 Soldier destroyed. 07522_ Switching to secondary target: G-50 Soldier. 07522_ HV Slug penetrates G-50 Soldier. 07525_ G-50 Soldier destroyed. 07539_ Used Protomatter to restore core integrity (+29) 07540_ Used Protomatter to restore part integrity (+11) Map ----- +----------------------------------------------------+ | ?????????????????????????# ######## # #?????? | | ?????????????????????????# =* = + """ #?????? | | ?????????????????????????#*%!=##### # """ #?????? | | ?????????????????????????# /! #???# # """ #?????? | | ??????????????????????? #???# #? #?????? | | ??????????????????????#### #####+########?????? | | ?????????????????????????# ## ! #?????? | | ?????????????????????????# ## """ """ #?????? | | ?????????????????????????# ## "T """ #?????? | | ?????????????????????????# ## """ """ #?????? | | ????????????????????????? ## #?????? | | ?????????????????????????#### ## """ """ #?????? | | ????????????????????????????? ## """ """ #?????? | | ????????????????????????????? ## """ """ #?????? | | ????????????????????????????? ## #????## | | ????????????????????????????? ## """ """ #??? | | ????????????????????????????? ## ! """ """ #?? | | ??????????????????????####### ## """ """ #?? | | ???????????????????+### ##! #? #? | | ??????????????????? #######+####### #? | | ???????????????????? ! ! +? | | ??????????????????"""""" ]** %= #? | | ??????????????????"""""" *%*] = #? | | ???????????????# """""" [*! ##+#########+######? | | ???????????????# """"""%=%= ## ## #? | | ???????????????# @%* ;# " " ## #? | | ???????????????# """"" = ## " " ## #? | | ???????????????+ ?"""""" ## " " ## #? | | ??????????"" # "" #????? | | ????????? ????+ | ""G"" * # """ #????? | | ???^????"" ???# !%############# #?""" #????? | | ????????"" ^ ??# !#?########??# #?""" ??????? | | ????????"" ?# # """ ### #?? ???????? | | ???????""" ?# #??= ""R" + #?? ????????? | | ??? # #? "" " ### #???##????????? | | ??????? # #? ??# #############?? | | ??????????????#" + """ """???# =%* #?? | | ??????????????## % #?""" """???############# #?? | +----------------------------------------------------+ Best States ------------- Heat Dissipation 61 Energy Generation 23 Energy Capacity 300 Matter Stores 600 Matter Capacity 600 Sight Range 16 Robot Scan Range 15 Terrain Scan Range 16 Terrain Scan Density 10 Armor Coverage 600 Resistance: KI 20 Resistance: TH 20 Resistance: EX 20 Resistance: EM 20 Resistance: I 20 Resistance: S 20 Resistance: P 20 Evasion (%) 64 Targeting Accuracy 5 Armor Integrity Analysis 30 Matter Filtering 30 Kinecelleration 40 Offensive Hacking 20 Defensive Hacking 20 Item Schematics ----------------- Cld. Particle Cannon | -7/Factory | Hacked System Restoration Module | -7/Factory | Hacked Robot Schematics ------------------ O-24 Administrator | -7/Data Miner | Free S-27 Virus | -7/Data Miner | Free X-57 Shotgunner | -7/Data Miner | Free Y-54 Guardian | -7/Data Miner | Free G-50 Soldier | -7/Data Miner | Free Fabricated ------------ Cld. Particle Cannon | x1 | -7/Factory System Restoration Module | x2 | -7/Factory Alien Tech Used ----------------- None Achievements -------------- None Challenges ------------ None RPGLIKE | -11 -10 -10 -9 -9 -9 -8 -8 -8 -8 -8 -8 -7 -7 -7 -7 -7 -7 -7 -7 -6 -6 --------- Run | Jun Mat Min Mat Min Exi Min Mat Gar Mat Sto Gar Fac Gar Fac Gar Fac Low Low Dat Pro Fac Levels Raised 18 | . . 1 4 . . 1 3 2 1 . 1 2 1 . 1 . . . . 1 . XP Earned 32497 | 4000 1095 1000 5668 750 200 1386 3870 3382 1085 849 1360 2498 1358 80 1065 487 249 247 105 674 1089 XP Spent 29900 | 4000 . 1500 4400 . . 2920 2625 5005 . . . 5950 . . 1500 . . . . 2000 . Upgrades 46 | 7 . 3 7 . . 8 4 8 . . . 7 . . 1 . . . . 1 . Propulsion Slot 3 | 1 . . 1 . . . . 1 . . . . . . . . . . . . . Utility Slot 6 | 1 . . 1 . . . 1 1 . . . 1 . . . . . . . 1 . Weapon Slot 4 | 1 . 1 . . . . 1 1 . . . . . . . . . . . . . Heat Dissipation 6 | . . . . . . 4 . 2 . . . . . . . . . . . . . Energy Generation 1 | . . . . . . . . 1 . . . . . . . . . . . . . Matter Storage 4 | . . . . . . . 2 2 . . . . . . . . . . . . . Mass Support 3 | . . 2 1 . . . . . . . . . . . . . . . . . . Inventory Capacity 6 | 4 . . . . . . . . . . . 1 . . 1 . . . . . . Ranged Accuracy 3 | . . . . . . 3 . . . . . . . . . . . . . . . Hack Attack % 2 | . . . 1 . . . . . . . . 1 . . . . . . . . . Hack Defense % 4 | . . . . . . . . . . . . 4 . . . . . . . . . KI Damage % 4 | . . . 3 . . 1 . . . . . . . . . . . . . . . Protomatter Created 4342 | . 86 91 274 15 . 142 236 378 259 110 621 252 383 68 644 365 149 86 . 72 111 Integrity Restored 6155 | . 106 273 288 37 . 88 358 321 320 68 722 234 646 197 1277 459 148 220 . 131 262 Core 4028 | . 85 273 184 37 . 59 273 256 188 17 453 156 435 171 692 283 108 128 . 63 167 Parts 2127 | . 21 . 104 . . 29 85 65 132 51 269 78 211 26 585 176 40 92 . 68 95 Protomatter Decayed 2297 | . . 14 218 . . 41 113 339 199 111 346 165 214 . 183 205 29 . . 15 105 Game ------ Seed StasisParticleTendrils Manual? 0 Play Time 01:42:57 Cumulative 124.1 hours Start 2023.05.15 @ 13:43:38 End 2023.05.16 @ 16:21:22 Sessions 3 Manual Loads 0 Difficulty Adventurer Special Mode Winter2019/RPGLIKE Game No. 87 Rogue 46 Adventurer 7 Explorer 34 Win Type - Total 19 Types 10/0/4/4/1/0/0/0/0 Lore% 75 Gallery% 70 Achievement% 76 Wizard Run 0 Options --------- ASCII 0 Keyboard 0 Movement Mouse Keybinds 0 Fullscreen 1 Font 18/Smallcaps Map View 76x50 Tactical HUD 1 Map Filters NONE Filters NONE Steam 1 RUN: 705feb6b-3d9a-4210-8c7b-d8ff1577d5e9